bitfinex-derivatives/quotes_ETHF0:USTF0_20240826
["timestamp","ask_amount","ask_price","bid_price","bid_amount"]
[1724635343304,9.10046075,2755.8,2755.4,2.87723952]
[1724635343598,9.10046075,2755.8,2755.5,0.36273]
[1724635343795,9.10046075,2755.8,2755.4,2.51449952]
[1724635343796,9.10046075,2755.8,2755.7,2.51]
[1724635343997,7.3948,2756.3,2755.9,0.36267]
[1724635344199,7.3948,2756.3,2756.0,2.51]
[1724635344501,8.95629339,2756.1,2756.0,2.51]
[1724635344709,8.95629339,2756.2,2756.0,2.51]
[1724635344890,3.57043,2756.3,2756.0,2.51]
[1724635345092,8.98663535,2756.2,2756.0,2.51]
[1724635347101,9.34927535,2756.2,2756.0,2.51]
[1724635347492,9.49706046,2756.3,2756.0,2.51]
[1724635347697,9.13443046,2756.1,2756.0,2.51]
[1724635348001,9.2328923,2756.2,2756.0,2.51]
[1724635348394,0.36264,2756.2,2756.0,2.51]
[1724635348706,0.36265,2756.1,2756.0,2.51]
[1724635349009,9.48635448,2756.1,2755.8,0.7323]
[1724635349999,9.48635448,2756.1,2755.8,1.09499]
[1724635352498,9.48635448,2756.1,2755.8,0.7323]
[1724635352697,0.36267,2756.0,2755.8,0.7323]
[1724635353098,3.2078,2756.4,2755.7,5.7178]
[1724635353099,8.97190946,2755.9,2755.7,5.7178]
[1724635353406,0.36268,2755.9,2755.7,5.7178]
[1724635354601,0.36267,2756.0,2755.7,5.7178]
[1724635355111,9.61218481,2756.0,2755.7,5.7178]
[1724635355807,9.61218481,2756.0,2755.7,6.08049]
[1724635356011,9.61218481,2756.0,2755.9,0.36268]
[1724635356012,9.24951481,2756.0,2755.9,0.36268]
[1724635356506,9.35288916,2756.2,2755.8,0.71688]
[1724635356811,0.36265,2756.2,2755.8,0.71688]
[1724635357011,9.00314593,2756.1,2755.9,0.36268]
[1724635357402,9.00314593,2756.1,2756.0,0.7527]
[1724635357709,9.00314593,2756.2,2756.0,0.7527]
[1724635357899,9.36578593,2756.2,2756.0,0.7527]
[1724635358195,0.36265,2756.1,2756.0,0.7527]
[1724635358397,8.94774877,2756.1,2756.0,0.7527]
[1724635358809,0.36265,2756.1,2756.0,0.7527]
[1724635359204,8.86791534,2756.1,2756.0,0.7527]
[1724635359503,9.23056534,2756.2,2756.0,0.7527]
[1724635359809,0.36265,2756.1,2756.0,0.7527]
[1724635360207,9.24118536,2756.1,2756.0,0.7527]
[1724635360602,0.36264,2756.2,2756.0,0.7527]
[1724635360913,9.24118536,2756.1,2756.0,0.7527]
[1724635361615,9.24118536,2756.1,2756.0,1.11536]
[1724635361999,0.36264,2756.2,2756.0,0.7527]
[1724635362212,0.36265,2756.1,2756.0,0.7527]
[1724635362405,9.25240219,2756.1,2756.0,0.7527]
[1724635362602,0.36265,2756.1,2756.0,0.7527]
[1724635362903,9.25240219,2756.1,2756.0,0.7527]
[1724635363310,9.25240219,2756.1,2756.0,0.3714]
[1724635364615,9.25240219,2756.1,2755.7,6.0805]
[1724635364616,0.36267,2756.0,2755.7,6.0805]
[1724635365014,8.93277401,2755.9,2755.7,6.0805]
[1724635365417,8.93277401,2755.9,2755.7,9.7093]
[1724635365807,8.93277401,2755.9,2755.8,0.36269]
[1724635366417,8.93277401,2755.9,2755.8,3.99149]
[1724635366815,0.3541,2756.5,2756.3,0.36262]
[1724635367016,0.7167,2756.5,2756.2,0.36263]
[1724635367202,4.187,2756.6,2756.3,1.12032]
[1724635367203,0.36259,2756.6,2756.3,1.12032]
[1724635368012,3.57038,2756.7,2756.4,0.3626]
[1724635368318,9.23977297,2756.6,2756.4,0.3626]
[1724635368621,9.23977297,2756.6,2756.5,2.51]
[1724635370907,9.60235297,2756.6,2756.5,2.51]
[1724635371834,0.3626,2756.5,2756.3,3.2078]
[1724635372009,0.3626,2756.5,2756.3,3.57042]
[1724635372211,0.3626,2756.5,2756.3,3.2078]
[1724635372515,9.23977297,2756.6,2756.3,3.57042]
[1724635372516,9.96386297,2756.6,2756.3,3.57042]
[1724635373115,9.96386297,2756.6,2756.4,0.45344415]
[1724635373311,9.96386297,2756.6,2756.3,3.57042]
[1724635373512,9.96386297,2756.6,2756.4,0.45344618]
[1724635373821,9.96386297,2756.6,2756.3,3.57042]
[1724635374113,9.96386297,2756.6,2756.4,0.45344667]
[1724635374318,9.96386297,2756.6,2756.5,0.45344667]
[1724635374917,9.96386297,2756.6,2756.3,3.57042]
[1724635375316,9.96386297,2756.6,2756.4,0.45345058]
[1724635375517,9.96386297,2756.6,2756.5,0.45345058]
[1724635378220,9.96386297,2756.6,2756.5,0.45345666]
[1724635378420,9.96386297,2756.6,2756.5,0.90691474]
[1724635381517,14.49833297,2756.6,2756.5,0.90691474]
[1724635381730,19.49833297,2756.6,2756.5,0.90691474]
[1724635382023,19.49833297,2756.6,2756.5,0.90695493]
[1724635383722,19.49833297,2756.6,2756.5,0.45345666]
[1724635383926,19.49833297,2756.6,2756.5,0.90695246]
[1724635385430,9.60236297,2756.6,2756.5,0.90695246]
[1724635385823,9.60235297,2756.6,2756.5,1.4639808]
[1724635386027,9.23977297,2756.6,2756.5,1.4639808]
[1724635386424,9.07953491,2756.7,2756.5,1.8265808]
[1724635386624,0.36801593,2756.8,2756.6,0.4534958]
[1724635386820,0.00544593,2756.8,2756.7,4.58085467]
[1724635387029,0.00544593,2756.8,2756.7,8.20805467]
[1724635387219,9.03623239,2756.8,2756.7,3.2078]
[1724635387428,9.03623239,2756.8,2756.7,4.21816776]
[1724635387728,9.03623239,2756.8,2756.7,4.57086776]
[1724635388428,0.00544593,2756.8,2756.7,4.93343776]
[1724635388725,0.00544593,2756.8,2756.7,4.57086776]
[1724635389827,13.1136237,2756.8,2756.7,1.01036776]
[1724635390127,0.36264,2756.2,2756.1,0.94954693]
[1724635390320,3.99064,2756.2,2756.1,1.01054405]
[1724635390524,3.99064,2756.2,2756.1,0.45348765]
[1724635390923,7.19844,2756.2,2756.1,0.45348765]
[1724635391139,3.99064,2756.2,2756.1,0.45348765]
[1724635391331,4.33994,2756.2,2756.1,0.45348765]
[1724635396436,0.36267,2756.0,2755.7,2.03914693]
[1724635396637,0.36267,2756.0,2755.8,1.01065779]
[1724635396828,0.36267,2756.0,2755.9,1.01065683]
[1724635397138,9.18205573,2756.0,2755.9,1.01065683]
[1724635397921,9.54471573,2756.0,2755.9,1.01065683]
[1724635398122,9.54471573,2756.0,2755.9,0.45355225]
[1724635398327,9.54471573,2756.0,2755.9,1.01065355]
[1724635398529,9.54471573,2756.0,2755.9,0.45355225]
[1724635399535,9.54471573,2756.0,2755.7,1.67644693]
[1724635399536,0.36268,2755.9,2755.7,1.67644693]
[1724635399838,0.36268,2755.9,2755.8,0.55710177]
[1724635400037,0.36268,2755.9,2755.8,1.01064968]
[1724635402331,9.54472573,2756.0,2755.8,1.01064968]
[1724635402534,9.18205573,2756.0,2755.9,0.45354791]
[1724635402731,9.18205573,2756.0,2755.9,0.81619714]
[1724635402939,9.18205573,2756.0,2755.9,8.46162273]
[1724635403240,4.187,2756.4,2756.1,0.36265]
[1724635403442,4.54962,2756.4,2756.2,0.80331714]
[1724635403639,9.23824443,2756.3,2756.2,0.7287]
[1724635403831,9.23824443,2756.3,2756.2,1.18217993]
[1724635404034,8.87562443,2756.3,2756.2,1.54481993]
[1724635404230,8.87562443,2756.3,2756.2,2.10186167]
[1724635404735,8.87562443,2756.3,2756.2,4.61186167]
[1724635405836,8.87562443,2756.3,2756.2,3.60134]
[1724635406034,8.87562443,2756.3,2756.2,4.61184346]
[1724635406234,0.36801593,2756.8,2756.2,12.87720346]
[1724635406541,9.42438419,2756.7,2756.3,3.12712891]
[1724635406727,9.42438419,2756.7,2756.4,1.01050346]
[1724635406931,9.42438419,2756.7,2756.5,1.01050346]
[1724635407132,9.42438419,2756.7,2756.6,0.45346441]
[1724635408939,9.42438419,2756.7,2756.2,7.75867693]
[1724635408940,0.36259,2756.6,2756.2,7.75867693]
[1724635409143,0.36259,2756.6,2756.3,0.36262]
[1724635409443,0.36259,2756.6,2756.4,1.01048107]
[1724635409637,9.42438419,2756.7,2756.5,1.01048107]
[1724635409948,9.06180419,2756.7,2756.6,1.37303022]
[1724635410240,9.06180419,2756.7,2756.6,1.75543022]
[1724635410430,9.06180419,2756.7,2756.6,5.02005022]
[1724635410643,9.06180419,2756.7,2756.6,8.22785022]
[1724635411640,9.06180419,2756.7,2756.6,0.45345177]
[1724635411641,9.42437419,2756.7,2756.6,0.45345177]
[1724635412143,9.42437419,2756.7,2756.5,2.51]
[1724635412541,9.42437419,2756.7,2756.6,0.4534275]
[1724635414145,9.77647419,2756.7,2756.6,0.4534275]
[1724635415436,13.40367419,2756.7,2756.6,0.4534275]
[1724635415636,0.3626,2756.5,2756.3,4.15734693]
[1724635415947,0.36261,2756.5,2756.4,1.01046438]
[1724635418633,0.36261,2756.5,2756.4,0.45343291]
[1724635418834,0.36259,2756.6,2756.4,1.01044828]
[1724635419044,0.36259,2756.6,2756.5,1.01044828]
[1724635420447,3.99059,2756.6,2756.5,0.45343291]
[1724635420646,17.16764354,2756.6,2756.5,0.45343291]
[1724635420951,0.36265,2756.1,2755.9,0.94954693]
[1724635421153,0.36265,2756.1,2756.0,0.55708217]
[1724635421848,0.36265,2756.1,2755.9,1.30234693]
[1724635422049,0.36265,2756.1,2756.0,0.55707544]
[1724635422443,0.36265,2756.1,2755.9,1.30234693]
[1724635422756,0.73034,2756.2,2756.0,0.5570785]
[1724635423049,0.73034,2756.2,2756.1,0.5570785]
[1724635424853,0.73034,2756.2,2755.9,1.66501693]
[1724635425049,0.73034,2756.2,2756.1,0.55707171]
[1724635426546,0.36262,2756.4,2756.1,0.55707171]
[1724635426747,4.9184,2756.5,2756.2,1.28648645]
[1724635426947,9.60163335,2756.4,2756.3,0.3705]
[1724635428457,0.36264,2756.2,2755.9,4.52001693]
[1724635428757,0.36264,2756.2,2756.0,1.27932354]
[1724635428944,9.23902335,2756.4,2756.1,0.55706354]
[1724635429143,9.23902335,2756.4,2755.9,4.52414693]
[1724635429144,0.36266,2756.1,2755.9,1.31634693]
[1724635429355,0.36266,2756.1,2756.0,0.55707471]
[1724635431244,0.36266,2756.1,2755.9,1.67901693]
[1724635431445,0.36266,2756.1,2756.0,0.55707249]
[1724635432557,9.40985556,2756.1,2756.0,0.55707249]
[1724635432761,9.40985556,2756.1,2756.0,1.01059746]
[1724635434248,9.40985556,2756.1,2756.0,1.37325746]
[1724635434456,9.40985556,2756.1,2756.0,1.01059746]
[1724635435953,9.40985556,2756.1,2756.0,2.16902223]
[1724635436161,9.40985556,2756.1,2756.0,1.36449746]
[1724635437552,9.40985556,2756.1,2756.0,0.80742497]
[1724635437859,9.40985556,2756.1,2756.0,1.36449474]
[1724635439260,9.40985556,2756.1,2756.0,1.72715474]
[1724635439860,9.40985556,2756.1,2756.0,2.53168031]
[1724635440259,9.40985556,2756.1,2756.0,3.48122724]
[1724635440260,9.04719556,2756.1,2756.0,3.48122724]
[1724635440673,0.36263,2756.3,2756.0,3.48122724]
[1724635440674,9.24276853,2756.2,2756.1,0.36264]
[1724635440855,9.24276853,2756.2,2756.1,0.8161365]
[1724635441163,0.36263,2756.3,2756.1,1.37319965]
[1724635441357,0.36263,2756.3,2756.2,1.01055965]
[1724635441757,13.17746824,2756.3,2756.2,1.01055965]
[1724635442156,13.17746824,2756.3,2756.2,0.4534965]
[1724635442861,0.36265,2756.2,2756.0,1.66610693]
[1724635443063,0.36265,2756.2,2756.1,1.01056946]
[1724635443466,9.42671021,2756.2,2756.1,1.01056946]
[1724635444975,9.42671021,2756.2,2756.1,1.01057876]
[1724635446068,0.36265,2756.1,2756.0,1.30344693]
[1724635446267,0.36265,2756.1,2756.0,3.11854727]
[1724635446467,9.63979118,2756.1,2756.0,3.11854727]
[1724635446769,13.26779118,2756.1,2756.0,1.01056888]
[1724635450770,13.26779118,2756.1,2756.0,1.81511253]
[1724635451269,13.26779118,2756.1,2756.0,1.01056888]
[1724635451467,13.26779118,2756.1,2756.0,2.76465114]
[1724635451672,13.26779118,2756.1,2756.0,1.81510421]
[1724635451867,13.26779118,2756.1,2756.0,1.81511179]
[1724635452072,13.26779118,2756.1,2756.0,1.01056888]
[1724635452263,0.36266,2756.0,2755.9,0.94954693]
[1724635452466,0.36266,2756.0,2755.9,2.76360551]
[1724635452670,0.36266,2756.0,2755.9,4.96633005]
[1724635454072,0.36266,2756.0,2755.9,6.00633005]
[1724635454970,0.36266,2756.0,2755.9,6.36901005]
[1724635455376,9.63980118,2756.1,2755.9,4.227318]
[1724635455565,9.63980118,2756.1,2756.0,2.3117941]
[1724635455765,3.628,2756.1,2756.0,2.3117941]
[1724635455967,8.88411997,2756.1,2756.0,3.12796189]
[1724635456270,8.88411997,2756.1,2756.0,13.5714854]
[1724635456569,4.187,2756.5,2756.3,0.36262]
[1724635456770,0.36261,2756.4,2756.3,0.36262]
[1724635456969,0.36261,2756.4,2756.3,1.01044757]
[1724635457470,0.36261,2756.4,2756.3,2.05044757]
[1724635458680,0.36261,2756.4,2756.3,2.0504622]
[1724635458878,0.36261,2756.4,2756.3,2.05048074]
[1724635461773,0.36261,2756.4,2756.3,2.05047891]
[1724635464184,0.36261,2756.4,2756.3,2.85492072]
[1724635464781,5.93714,2756.4,2756.3,1.01047891]
[1724635464974,21.05983397,2756.4,2756.3,1.01047891]
[1724635465173,21.05983397,2756.4,2756.3,0.45348033]
[1724635465578,21.05983397,2756.4,2756.3,3.3e-07]
[1724635465778,21.05983397,2756.4,2755.7,1.88779485]
[1724635465779,18.88416397,2756.4,2755.7,0.95015113]
[1724635466079,18.88416397,2756.4,2755.4,0.00449952]
[1724635466080,0.36273,2755.5,2755.4,0.95465065]
[1724635466386,0.36584334,2755.5,2755.4,2.31650787]
[1724635467184,0.00311334,2755.5,2755.4,2.31650787]
[1724635468094,0.36584334,2755.5,2755.4,2.31650787]
[1724635468584,0.36584334,2755.5,2755.4,0.56166629]
[1724635468585,13.24094875,2755.5,2755.4,0.56166629]
[1724635468787,13.24094875,2755.5,2755.4,0.00449952]
[1724635474179,9.61214875,2755.5,2755.4,0.00449952]
[1724635474391,13.24094875,2755.5,2755.4,0.00449952]
[1724635476288,14.14777875,2755.5,2755.4,0.00449952]
[1724635478382,14.14777875,2755.5,2755.1,0.3728]
[1724635478383,10.15624875,2755.5,2755.1,0.3728]
[1724635479291,0.36277,2755.2,2755.1,0.3728]
[1724635479592,0.36277,2755.2,2755.1,0.3767352]
[1724635481596,10.33310261,2755.2,2755.1,0.3767352]
[1724635481790,11.05810261,2755.2,2755.1,0.3767352]
[1724635482590,10.15117261,2755.2,2755.1,0.3767352]
[1724635482790,9.42617261,2755.2,2755.1,0.3767352]
[1724635484384,10.16467261,2755.2,2755.1,0.3767352]
[1724635488892,9.06340261,2755.2,2755.1,0.3767352]
[1724635489401,9.42617261,2755.2,2755.1,0.3767352]
[1724635493307,10.33310261,2755.2,2755.1,0.3767352]
[1724635500207,10.33310261,2755.2,2755.1,0.0039352]
[1724635500917,15.01270261,2755.2,2755.1,0.0039352]
[1724635504707,11.38310261,2755.2,2755.1,0.0039352]
[1724635505008,10.33310261,2755.2,2755.1,0.0039352]
[1724635508315,11.38310261,2755.2,2755.1,0.0039352]
[1724635509713,12.14330261,2755.2,2755.1,0.0039352]
[1724635510310,15.77290261,2755.2,2755.1,0.0039352]
[1724635513323,1.26978,2755.0,2754.9,0.00544593]
[1724635513618,1.26992,2754.7,2754.6,0.7339]
[1724635513814,2.31992,2754.7,2754.6,1.29024988]
[1724635514018,11.21480886,2754.7,2754.6,0.7339]
[1724635514206,11.21480886,2754.7,2754.6,1.29027122]
[1724635514407,11.21480886,2754.7,2754.6,1.85032435]
[1724635514613,10.16480886,2754.7,2754.6,1.29395313]
[1724635515120,10.16480886,2754.7,2754.6,0.73758284]
[1724635518613,11.21480886,2754.7,2754.6,0.00368284]
[1724635518813,11.95260886,2754.7,2754.6,0.00368284]
[1724635520517,15.58300886,2754.7,2754.6,0.00368284]
[1724635521826,9.62311886,2754.7,2754.6,0.00368284]
[1724635523718,8.89488886,2754.7,2754.6,1.05368284]
[1724635524225,8.89488886,2754.7,2754.6,1.61000201]
[1724635524423,8.89488886,2754.7,2754.6,2.74350201]
[1724635524926,8.98298166,2754.8,2754.6,2.74352249]
[1724635525113,8.98298166,2754.8,2754.7,1.05]
[1724635525319,0.36281,2754.9,2754.7,1.05]
[1724635525627,8.93261156,2754.8,2754.7,1.05]
[1724635526121,8.93261156,2754.8,2754.7,10.59953374]
[1724635526318,8.93261156,2754.8,2754.7,10.23670374]
[1724635527534,9.29543156,2754.8,2754.7,5.23670374]
[1724635527823,8.93261156,2754.8,2754.7,5.23670374]
[1724635529526,8.93261156,2754.8,2754.7,4.6804]
[1724635529733,8.93261156,2754.8,2754.7,5.23704652]
[1724635532124,8.93261156,2754.8,2754.7,10.23704652]
[1724635532436,9.29543156,2754.8,2754.7,0.55664652]
[1724635532727,9.29543156,2754.8,2754.6,4.34498284]
[1724635532934,9.29543156,2754.8,2754.7,0.55686425]
[1724635533237,9.29543156,2754.8,2754.7,0.55697464]
[1724635534533,8.93261156,2754.8,2754.7,5.23737464]
[1724635534731,9.29543156,2754.8,2754.7,5.23737464]
[1724635534928,9.29543156,2754.8,2754.7,1.60697464]
[1724635535234,9.29543156,2754.8,2754.7,4.18737464]
[1724635535433,9.29543156,2754.8,2754.7,0.55697464]
[1724635535636,9.29543156,2754.8,2754.7,4.18737464]
[1724635535832,9.29543156,2754.8,2754.7,3.6304]
[1724635536128,9.29543156,2754.8,2754.7,4.18751585]
[1724635536322,8.93261156,2754.8,2754.7,4.18751585]
[1724635536928,8.93261156,2754.8,2754.7,5.23751585]
[1724635537632,4.187,2755.2,2754.9,0.3628]
[1724635537835,4.54977,2755.2,2755.1,1.05]
[1724635538035,0.36278,2755.1,2755.0,3.2078]
[1724635538340,0.36278,2755.1,2755.0,3.76474785]
[1724635540232,0.36281,2754.9,2754.8,0.95022927]
[1724635540437,1.4186,2755.0,2754.8,0.55703663]
[1724635540629,1.78139,2755.0,2754.9,0.55705621]
[1724635540935,10.67043387,2755.0,2754.9,0.55705621]
[1724635541934,10.67043387,2755.0,2754.7,0.95022927]
[1724635542139,0.36282,2754.8,2754.7,0.95022927]
[1724635542531,0.36282,2754.8,2754.7,2.31138898]
[1724635543647,0.36282,2754.8,2754.7,5.17627024]
[1724635543939,0.36282,2754.8,2754.7,4.61359319]
[1724635544936,0.36282,2754.8,2754.7,5.17667876]
[1724635545137,0.36282,2754.8,2754.7,3.81552105]
[1724635545536,0.36282,2754.8,2754.7,6.03922129]
[1724635545742,9.25184387,2755.0,2754.7,6.40205129]
[1724635545939,8.88904387,2755.0,2754.9,1.41281]
[1724635546239,9.00493634,2755.1,2754.9,2.92049725]
[1724635546541,4.54977,2755.2,2755.0,0.91980479]
[1724635546841,9.26043704,2755.1,2755.0,0.36279]
[1724635547040,9.26043704,2755.1,2755.0,0.55704061]
[1724635548344,9.62321704,2755.1,2755.0,0.55704061]
[1724635548644,9.74874809,2755.2,2755.0,0.55704061]
[1724635548831,0.3657,2755.1,2754.9,1.05]
[1724635549031,0.3657,2755.1,2755.0,0.55706416]
[1724635549231,0.72848,2755.1,2755.0,0.55706416]
[1724635549431,9.38256809,2755.1,2755.0,0.55706416]
[1724635550835,9.01686809,2755.1,2755.0,0.55706416]
[1724635552130,0.36820593,2755.3,2755.0,4.18666416]
[1724635552335,0.36820593,2755.3,2755.2,1.05]
[1724635552540,0.00544593,2755.3,2755.2,1.60706416]
[1724635552739,0.00544593,2755.3,2755.2,6.55010662]
[1724635552944,0.00544593,2755.3,2755.2,6.99143347]
[1724635553145,0.00544593,2755.3,2755.2,6.18733662]
[1724635553648,0.00544593,2755.3,2755.2,5.23666416]
[1724635553849,0.00544593,2755.3,2755.2,6.18733662]
[1724635554544,0.00544593,2755.3,2755.2,5.23666416]
[1724635554845,0.00544593,2755.3,2755.2,6.18733662]
[1724635555040,0.00544593,2755.3,2755.2,5.61766416]
[1724635557542,0.00544593,2755.3,2755.2,5.6173672]
[1724635559049,0.00311334,2755.5,2755.3,0.36275]
[1724635559254,0.00311334,2755.5,2755.4,1.05]
[1724635559546,9.13227618,2755.5,2755.4,1.60670813]
[1724635559851,0.00311334,2755.5,2755.4,5.59824813]
[1724635560145,0.00544593,2755.7,2755.6,0.36271]
[1724635560456,0.00544593,2755.7,2755.6,1.96941813]
[1724635560641,0.00023709,2755.7,2755.6,15.01430334]
[1724635560946,4.91202,2756.4,2756.0,0.36266]
[1724635561144,4.91202,2756.4,2756.3,1.05]
[1724635561145,0.36707538,2756.4,2756.3,1.05]
[1724635561543,0.00445538,2756.4,2756.3,1.05]
[1724635562250,0.36706538,2756.4,2756.3,1.05]
[1724635562756,0.36262,2756.3,2756.2,1.05]
[1724635563049,0.36262,2756.3,2756.1,0.00544593]
[1724635563249,0.36264,2756.2,2756.1,0.00544593]
[1724635563451,0.71254,2756.2,2756.1,0.00544593]
[1724635563753,9.91459279,2756.2,2756.1,0.00544593]
[1724635565846,13.12239279,2756.2,2756.1,0.00544593]
[1724635566447,17.65699279,2756.2,2756.1,0.00544593]
[1724635566653,0.36268,2755.9,2755.6,3.2078]
[1724635566851,0.385,2755.8,2755.6,3.2078]
[1724635567051,8.97637602,2755.8,2755.6,3.2078]
[1724635567253,0.7434,2756.1,2755.7,3.9915]
[1724635567549,0.7434,2756.1,2755.6,3.2078]
[1724635567754,0.7434,2756.1,2755.7,0.3587]
[1724635568053,0.7434,2756.1,2755.8,0.36269]
[1724635569644,4.187,2756.2,2755.9,6.8366]
[1724635569845,0.00445538,2756.4,2756.3,0.36262]
[1724635570053,0.00445538,2756.4,2756.3,3.628]
[1724635570246,0.00445538,2756.4,2756.3,3.99062]
[1724635570452,0.00445538,2756.4,2756.3,4.34932]
[1724635570647,0.00445538,2756.4,2756.3,3.9867]
[1724635574857,0.00445538,2756.4,2756.3,4.364]
[1724635575855,0.00445538,2756.4,2756.3,4.72662]
[1724635576459,0.00445538,2756.4,2756.3,5.11142]
[1724635577561,0.00445538,2756.4,2756.3,10.11142]
[1724635579048,0.00445538,2756.4,2756.3,13.31922]
[1724635580656,0.00544593,2756.6,2756.5,0.3626]
[1724635580861,0.00544593,2756.6,2756.5,7.8726]
[1724635581050,0.00544593,2756.6,2756.5,11.5006]
[1724635581254,0.00544593,2756.6,2756.5,6.5006]
[1724635581760,0.00843488,2756.6,2756.5,6.5006]
[1724635582157,0.00843488,2756.6,2756.5,11.5006]
[1724635582562,0.00843488,2756.6,2756.5,6.5006]
[1724635584057,0.00843488,2756.6,2756.5,9.7084]
[1724635584260,0.37101488,2756.6,2756.5,3.2078]
[1724635585064,0.00843488,2756.6,2756.5,3.2078]
[1724635586067,0.00843488,2756.6,2756.5,4.6104]
[1724635586571,0.00843488,2756.6,2756.5,4.2478]
[1724635587065,0.72263488,2756.6,2756.5,4.2478]
[1724635587253,0.72263488,2756.6,2756.5,4.6104]
[1724635588971,0.00843488,2756.6,2756.5,4.6104]
[1724635592762,0.39013488,2756.6,2756.5,4.6104]
[1724635593871,0.39013488,2756.6,2756.5,8.2384]
[1724635593872,0.00843488,2756.6,2756.5,8.2384]
[1724635594658,0.00843488,2756.6,2756.5,8.5916]
[1724635595961,0.00843488,2756.6,2756.5,8.2384]
[1724635596166,0.00843488,2756.6,2756.5,4.6104]
[1724635598074,0.00843488,2756.6,2756.5,1.4026]
[1724635599175,0.37102488,2756.6,2756.5,1.04]
[1724635599565,0.00843488,2756.6,2756.5,1.04]
[1724635599972,0.00843488,2756.6,2756.5,5.0306]
[1724635600769,0.00843488,2756.6,2756.5,4.668]
[1724635600974,0.00843488,2756.6,2756.5,1.04]
[1724635601172,0.00843488,2756.6,2756.5,1.4026]
[1724635601380,0.00843488,2756.6,2756.5,5.0306]
[1724635601565,0.00843488,2756.6,2756.5,10.0306]
[1724635602078,0.7113,2757.3,2756.9,0.36254]
[1724635602079,0.36251,2757.2,2756.9,0.36254]
[1724635602269,0.36251,2757.2,2757.1,1.04]
[1724635602466,9.04542162,2757.2,2757.1,1.04]
[1724635602669,9.04542162,2757.2,2757.1,1.40252]
[1724635602971,9.04542162,2757.2,2757.1,1.04]
[1724635603277,9.04968735,2757.2,2757.1,1.04398819]
[1724635606673,9.41218735,2757.2,2757.1,1.04398819]
[1724635607173,9.04968735,2757.2,2757.1,1.04398819]
[1724635608166,0.00426573,2757.2,2757.1,1.41638819]
[1724635608869,0.00426573,2757.2,2757.1,1.97227843]
[1724635609079,0.00426573,2757.2,2757.1,1.41638819]
[1724635610078,0.00544593,2757.4,2757.2,0.3625]
[1724635610279,0.00544593,2757.4,2757.3,1.40249]
[1724635610581,0.36235,2758.4,2757.5,0.90617]
[1724635610775,0.36235,2758.4,2758.3,1.04]
[1724635611169,3.9918172,2758.4,2758.3,1.04]
[1724635611474,12.85528246,2758.4,2758.3,1.04]
[1724635613982,0.36237,2758.3,2758.1,0.3677]
[1724635614386,9.29230878,2758.2,2758.1,0.3677]
[1724635614680,0.36237,2758.2,2758.1,0.3677]
[1724635614877,8.92993878,2758.3,2758.1,0.3677]
[1724635615081,0.0038672,2758.4,2758.1,0.3677]
[1724635615082,0.36237,2758.2,2758.1,0.3677]
[1724635615669,9.36854863,2758.3,2758.1,0.3677]
[1724635616181,0.36237,2758.2,2758.1,0.3677]
[1724635618386,0.36237,2758.2,2757.7,0.3807]
[1724635618387,0.36243,2757.8,2757.7,0.3807]
[1724635619886,0.36242,2757.9,2757.7,0.3807]
[1724635620087,0.72221,2758.0,2757.7,0.3807]
[1724635620280,0.72221,2758.0,2757.8,0.3836]
[1724635620790,0.36241,2757.9,2757.8,0.3836]
[1724635621186,0.72221,2758.0,2757.8,0.3836]
[1724635621680,0.36241,2758.0,2757.8,0.3836]
[1724635621986,0.36238,2758.2,2757.8,0.36242]
[1724635622185,4.11365,2758.5,2757.8,0.36242]
[1724635622389,0.0038672,2758.4,2757.8,0.36242]
[1724635622592,0.3624,2758.1,2757.7,0.36243]
[1724635623186,9.89748989,2758.3,2757.6,6.08024]
[1724635623687,0.36241,2758.0,2757.6,6.08024]
[1724635624182,0.36241,2757.9,2757.6,6.08024]
[1724635624384,0.36244,2757.7,2757.6,3.2078]
[1724635624580,10.16887009,2757.9,2757.3,3.2078]
[1724635624883,0.36245,2757.6,2757.3,3.57029]
[1724635625479,0.36245,2757.7,2757.3,3.57029]
[1724635625893,0.36245,2757.7,2757.4,0.36248]
[1724635626491,9.2181421,2757.8,2757.6,2.51]
[1724635626686,9.2181421,2757.8,2757.6,6.08025]
[1724635627089,9.2181421,2757.8,2757.7,0.36244]
[1724635627892,9.2181421,2757.8,2757.6,6.08024]
[1724635628594,9.2181421,2757.8,2757.6,2.51]
[1724635629091,9.5805721,2757.8,2757.6,2.51]
[1724635629484,0.36244,2757.7,2757.6,2.51]
[1724635629684,9.5805721,2757.8,2757.6,2.51]
[1724635629893,0.36244,2757.7,2757.6,2.51]
[1724635632389,0.36247,2757.5,2757.3,5.7178]
[1724635632795,0.36248,2757.4,2757.3,5.7178]
[1724635632993,9.2181421,2757.8,2757.3,5.7178]
[1724635633195,9.2181421,2757.8,2757.3,2.87249]
[1724635633396,0.9061,2757.7,2757.3,2.51]
[1724635633696,0.36248,2757.4,2757.3,2.51]
[1724635634402,3.2078,2757.8,2757.1,0.00398819]
[1724635634403,0.3625,2757.2,2757.1,0.00398819]
[1724635635586,0.90614,2757.6,2757.1,0.00398819]
[1724635635804,0.3625,2757.2,2757.1,0.00398819]
[1724635636303,8.92972193,2757.5,2757.1,0.00398819]
[1724635636804,0.3625,2757.2,2757.1,0.00398819]
[1724635638193,0.3625,2757.3,2757.1,0.00398819]
[1724635638505,0.3625,2757.2,2757.1,0.00398819]
[1724635643405,3.9897,2757.2,2757.1,0.00398819]
[1724635644700,0.3625,2757.2,2757.1,0.00398819]
[1724635646807,3.2078,2757.5,2757.1,0.00398819]
[1724635647107,0.3625,2757.3,2757.1,0.00398819]
[1724635647505,9.31618461,2757.2,2757.1,0.00398819]
[1724635647906,0.3625,2757.2,2757.1,0.00398819]
[1724635658734,4.89597,2757.2,2757.1,0.00398819]
[1724635661837,0.3625,2757.2,2757.1,0.00398819]
[1724635662042,0.3625,2757.2,2757.1,1.04398819]
[1724635665832,4.89597,2757.2,2757.1,1.04398819]
[1724635666035,4.89597,2757.2,2757.1,0.00398819]
[1724635666331,8.10377,2757.2,2757.1,0.00398819]
[1724635666535,1.26882,2757.1,2757.0,0.00544593]
[1724635666735,0.90633,2757.0,2756.7,1.04]
[1724635666931,0.36256,2756.8,2756.7,1.04]
[1724635667529,0.73996,2756.8,2756.7,1.04392489]
[1724635669236,0.73996,2756.8,2756.7,0.00392489]
[1724635669443,4.36716,2756.8,2756.7,0.00392489]
[1724635672549,0.73996,2756.8,2756.7,0.00392489]
[1724635672848,0.73996,2756.8,2756.7,0.36232489]